fUSD/lending_fUSD_20260605
["ID","MTS","AMOUNT","RATE_DAILY","PERIOD"]
[424217334,1780671040000,-1086.47,0.00013698,2]
[424217337,1780671040000,-1086.47,0.00013698,2]
[424217339,1780671040000,-1086.47,0.00013698,2]
[424217322,1780671040000,-241.38210982,0.00013698,2]
[424217338,1780671040000,-1086.47,0.00013698,2]
[424217340,1780671040000,-1086.47,0.00013698,2]
[424217341,1780671040000,-1086.47,0.00013698,2]
[424217342,1780671040000,-1086.47,0.00013698,2]
[424217343,1780671040000,-1086.47,0.00013698,2]
[424217344,1780671040000,-1086.47,0.00013698,2]
[424217345,1780671040000,-1036.17,0.00013698,2]
[424217347,1780671040000,-1036.17,0.00013698,2]
[424217348,1780671040000,-1036.17,0.00013698,2]
[424217350,1780671040000,-1036.17,0.00013698,2]
[424217346,1780671040000,-1036.17,0.00013698,2]
[424217349,1780671040000,-1036.17,0.00013698,2]
[424217297,1780671040000,-500.0,0.00013698,2]
[424217335,1780671040000,-1086.47,0.00013698,2]
[424217333,1780671040000,-564.28,0.00013698,2]
[424217336,1780671040000,-1086.47,0.00013698,2]
[424217321,1780671040000,-500.0,0.00013698,2]
[424217323,1780671040000,-564.28,0.00013698,2]
[424217293,1780671040000,-500.0,0.00013698,2]
[424217296,1780671040000,-300.0,0.00013698,2]
[424217295,1780671040000,-504.33267291,0.00013698,2]
[424217294,1780671040000,-500.0,0.00013698,2]
[424217301,1780671040000,-500.0,0.00013698,2]
[424217300,1780671040000,-500.0,0.00013698,2]
[424217304,1780671040000,-500.0,0.00013698,2]
[424217305,1780671040000,-500.0,0.00013698,2]
[424217306,1780671040000,-500.0,0.00013698,2]
[424217303,1780671040000,-500.0,0.00013698,2]
[424217302,1780671040000,-500.0,0.00013698,2]
[424217307,1780671040000,-500.0,0.00013698,2]
[424217299,1780671040000,-500.0,0.00013698,2]
[424217309,1780671040000,-500.0,0.00013698,2]
[424217308,1780671040000,-500.0,0.00013698,2]
[424217314,1780671040000,-500.0,0.00013698,2]
[424217313,1780671040000,-500.0,0.00013698,2]
[424217315,1780671040000,-500.0,0.00013698,2]
[424217311,1780671040000,-500.0,0.00013698,2]
[424217318,1780671040000,-500.0,0.00013698,2]
[424217316,1780671040000,-500.0,0.00013698,2]
[424217317,1780671040000,-500.0,0.00013698,2]
[424217320,1780671040000,-500.0,0.00013698,2]
[424217319,1780671040000,-500.0,0.00013698,2]
[424217310,1780671040000,-500.0,0.00013698,2]
[424217312,1780671040000,-500.0,0.00013698,2]
[424217364,1780671041000,-1314.09,0.000137,2]
[424217365,1780671041000,-4000.0,0.0001375,2]
[424217372,1780671041000,-166.66,0.0001411,2]
[424217373,1780671041000,-166.66,0.00014247,2]
[424217379,1780671041000,-500.0,0.00014694,2]
[424217370,1780671041000,-4000.0,0.00014077,2]
[424217371,1780671041000,-500.0,0.00014097,2]
[424217369,1780671041000,-250.0,0.00014,2]
[424217378,1780671041000,-2000.0,0.00014481,2]
[424217366,1780671041000,-166.66,0.00013836,2]
[424217374,1780671041000,-433.0,0.0001432,2]
[424217361,1780671041000,-2500.0,0.00013699,2]
[424217367,1780671041000,-166.66,0.00013973,2]
[424217360,1780671041000,-276.94730306,0.00013698,2]
[424217362,1780671041000,-200.0,0.00013699,2]
[424217359,1780671041000,-167.63651089,0.00013698,2]
[424217357,1780671041000,-167.0,0.00013698,2]
[424217368,1780671041000,-318.17478852,0.00013989,2]
[424217358,1780671041000,-167.0,0.00013698,2]
[424217353,1780671041000,-1036.17,0.00013698,2]
[424217356,1780671041000,-167.0,0.00013698,2]
[424217355,1780671041000,-167.0,0.00013698,2]
[424217354,1780671041000,-1036.17,0.00013698,2]
[424217351,1780671041000,-1036.17,0.00013698,2]
[424217377,1780671041000,-166.66,0.00014436,2]
[424217363,1780671041000,-166.66,0.00013699,2]
[424217375,1780671041000,-166.66,0.00014384,2]
[424217352,1780671041000,-1036.17,0.00013698,2]
[424217376,1780671041000,-4000.0,0.00014405,2]
[424217380,1780671041000,-500.0,0.00014694,2]
[424217426,1780671041000,-398.95485508,0.00014695,2]
[424217425,1780671041000,-1393.70538923,0.00014695,2]
[424217427,1780671041000,-3058.0495506,0.00014695,2]
[424217424,1780671041000,-6713.57353167,0.00014695,2]
[424217422,1780671041000,-611.30959117,0.00014695,2]
[424217423,1780671041000,-2145.0,0.00014695,2]
[424217418,1780671041000,-5118.8234575,0.00014695,2]
[424217413,1780671041000,-908.69262899,0.00014695,2]
[424217416,1780671041000,-2488.11649926,0.00014695,2]
[424217396,1780671041000,-1367084.77501808,0.00014695,2]
[424217395,1780671041000,-1086.47,0.00014694,2]
[424217393,1780671041000,-1086.47,0.00014694,2]
[424217420,1780671041000,-1617.86850435,0.00014695,2]
[424217386,1780671041000,-564.28,0.00014694,2]
[424217382,1780671041000,-500.0,0.00014694,2]
[424217394,1780671041000,-1086.47,0.00014694,2]
[424217392,1780671041000,-1086.47,0.00014694,2]
[424217381,1780671041000,-500.0,0.00014694,2]
[424217383,1780671041000,-516.19261394,0.00014694,2]
[424217390,1780671041000,-1086.47,0.00014694,2]
[424217388,1780671041000,-564.28,0.00014694,2]
[424217389,1780671041000,-564.28,0.00014694,2]
[424217385,1780671041000,-564.28,0.00014694,2]
[424217387,1780671041000,-564.28,0.00014694,2]
[424217391,1780671041000,-1086.47,0.00014694,2]
[424217384,1780671041000,-564.28,0.00014694,2]
[424217453,1780671042000,-6878.54702717,0.000154,2]
[424217445,1780671042000,-6878.54702717,0.000151,2]
[424217451,1780671042000,-166.66,0.00015389,2]
[424217454,1780671042000,-500.0,0.00015404,2]
[424217455,1780671042000,-830.0,0.00015438,2]
[424217448,1780671042000,-6878.54702717,0.000152,2]
[424217456,1780671042000,-830.0,0.00015447,2]
[424217447,1780671042000,-2016.58794916,0.000152,2]
[424217449,1780671042000,-498.99321736,0.000153,2]
[424217458,1780671042000,-830.0,0.00015476,2]
[424217457,1780671042000,-830.0,0.00015447,2]
[424217452,1780671042000,-2016.58794916,0.000154,2]
[424217444,1780671042000,-2016.58794916,0.000151,2]
[424217443,1780671042000,-564.28,0.00015099,2]
[424217430,1780671042000,-12651.54295135,0.00014695,2]
[424217435,1780671042000,-1036.17,0.00014703,2]
[424217428,1780671042000,-535.24104825,0.00014695,2]
[424217429,1780671042000,-668.95961652,0.00014695,2]
[424217460,1780671042000,-830.0,0.00015498,2]
[424217431,1780671042000,-94605.38735795,0.00014695,2]
[424217432,1780671042000,-500.0,0.00014703,2]
[424217433,1780671042000,-500.0,0.00014703,2]
[424217450,1780671042000,-186.02780546,0.00015336,2]
[424217438,1780671042000,-2000.0,0.000149,5]
[424217439,1780671042000,-166.66,0.00014912,2]
[424217440,1780671042000,-500.0,0.00014997,2]
[424217442,1780671042000,-900.0,0.00015068,2]
[424217434,1780671042000,-1086.47,0.00014703,2]
[424217437,1780671042000,-200.0,0.0001488,2]
[424217436,1780671042000,-3292.0,0.00014789,2]
[424217441,1780671042000,-154.61584995,0.00015055,2]
[424217461,1780671042000,-6878.54702717,0.000155,2]
[424217446,1780671042000,-10000.0,0.00015171,2]
[424217462,1780671042000,-830.0,0.00015505,2]
[424217480,1780671042000,-830.0,0.00015668,2]
[424217481,1780671042000,-773.0,0.00015692,2]
[424217483,1780671042000,-830.0,0.00015693,2]
[424217488,1780671042000,-2008.72724108,0.00015837,2]
[424217489,1780671042000,-500.0,0.00015837,2]
[424217490,1780671042000,-2000.0,0.00015837,2]
[424217487,1780671042000,-1314.09,0.000158,2]
[424217486,1780671042000,-6878.54702717,0.000157,2]
[424217494,1780671042000,-166.66,0.00015866,2]
[424217496,1780671042000,-151.0,0.00015895,2]
[424217498,1780671042000,-156.587,0.00015895,2]
[424217502,1780671042000,-2016.58794916,0.000159,2]
[424217500,1780671042000,-200.00373781,0.00015895,2]
[424217459,1780671042000,-830.0,0.00015493,2]
[424217492,1780671042000,-500.0,0.00015837,2]
[424217479,1780671042000,-830.0,0.00015657,2]
[424217485,1780671042000,-2016.58794916,0.000157,2]
[424217476,1780671042000,-830.0,0.00015611,2]
[424217463,1780671042000,-830.0,0.00015511,2]
[424217478,1780671042000,-830.0,0.0001563,2]
[424217464,1780671042000,-830.0,0.00015515,2]
[424217465,1780671042000,-830.0,0.00015516,2]
[424217466,1780671042000,-830.0,0.00015521,2]
[424217470,1780671042000,-830.0,0.00015595,2]
[424217468,1780671042000,-830.0,0.00015556,2]
[424217467,1780671042000,-830.0,0.00015554,2]
[424217473,1780671042000,-2016.58794916,0.000156,2]
[424217469,1780671042000,-830.0,0.00015569,2]
[424217471,1780671042000,-830.0,0.00015597,2]
[424217472,1780671042000,-830.0,0.00015599,2]
[424217475,1780671042000,-736.0,0.0001561,2]
[424217474,1780671042000,-830.0,0.00015601,2]
[424217477,1780671042000,-830.0,0.00015627,2]
[424217530,1780671043000,-500.0,0.00016281,2]
[424217525,1780671043000,-660.83068784,0.000162,2]
[424217529,1780671043000,-2285.8192381,0.00016271,2]
[424217533,1780671043000,-2285.8192381,0.00016284,2]
[424217532,1780671043000,-1036.17,0.00016281,2]
[424217528,1780671043000,-4609.0,0.00016268,2]
[424217524,1780671043000,-6878.54702717,0.000162,2]
[424217527,1780671043000,-2285.8192381,0.00016266,2]
[424217537,1780671043000,-2285.8192381,0.00016337,2]
[424217531,1780671043000,-500.0,0.00016281,2]
[424217526,1780671043000,-4251.99,0.00016263,2]
[424217536,1780671043000,-2285.8192381,0.00016317,2]
[424217534,1780671043000,-2016.58794916,0.000163,2]
[424217546,1780671043000,-3994.5,0.00016438,2]
[424217548,1780671043000,-900.0,0.00016438,2]
[424217549,1780671043000,-230.52,0.00016438,2]
[424217522,1780671043000,-2285.8192381,0.00016172,2]
[424217535,1780671043000,-6878.54702717,0.000163,2]
[424217523,1780671043000,-2016.58794916,0.000162,2]
[424217505,1780671043000,-1030.0,0.00015925,2]
[424217520,1780671043000,-2285.8192381,0.00016151,2]
[424217547,1780671043000,-219.34,0.00016438,2]
[424217506,1780671043000,-1500.0,0.00015925,2]
[424217503,1780671043000,-6878.54702717,0.000159,2]
[424217504,1780671043000,-150.0,0.000159,2]
[424217507,1780671043000,-2285.8192381,0.0001596,2]
[424217509,1780671043000,-2285.8192381,0.00015981,2]
[424217508,1780671043000,-191.39992268,0.0001597,2]
[424217510,1780671043000,-2016.58794916,0.00016,2]
[424217511,1780671043000,-6878.54702717,0.00016,2]
[424217512,1780671043000,-660.83068784,0.00016,2]
[424217513,1780671043000,-300.0,0.00016,2]
[424217514,1780671043000,-2285.8192381,0.00016015,2]
[424217515,1780671043000,-2285.8192381,0.00016024,2]
[424217516,1780671043000,-2285.8192381,0.00016088,2]
[424217518,1780671043000,-660.83068784,0.000161,2]
[424217517,1780671043000,-2000.0,0.0001609,2]
[424217519,1780671043000,-9999.99,0.00016116,2]
[424217521,1780671043000,-2285.8192381,0.00016172,2]
[424217544,1780671043000,-1147.36,0.00016438,2]
[424217550,1780671043000,-2285.8192381,0.0001645,2]
[424217577,1780671043000,-1252.0,0.0001702,2]
[424217569,1780671043000,-592.42969906,0.00016795,2]
[424217568,1780671043000,-1086.47,0.00016794,2]
[424217570,1780671043000,-166.66,0.00016819,2]
[424217573,1780671043000,-2285.8192381,0.00016926,2]
[424217574,1780671043000,-1112.94,0.00016931,2]
[424217575,1780671043000,-2285.8192381,0.00016931,2]
[424217585,1780671043000,-1672.7364795,0.00017569,2]
[424217576,1780671043000,-1278.48651852,0.00016943,2]
[424217578,1780671043000,-1107.63007,0.00017021,2]
[424217579,1780671043000,-1613.0535,0.00017021,2]
[424217584,1780671043000,-1148.61238259,0.00017569,2]
[424217582,1780671043000,-1274.94,0.00017169,2]
[424217580,1780671043000,-33256.6326,0.0001709,2]
[424217581,1780671043000,-2000.0,0.0001709,2]
[424217583,1780671043000,-1078.52,0.00017424,2]
[424217586,1780671043000,-2000.0,0.00017699,2]
[424217541,1780671043000,-2285.8192381,0.00016383,2]
[424217567,1780671043000,-2285.8192381,0.00016769,2]
[424217566,1780671043000,-564.28,0.00016768,2]
[424217572,1780671043000,-281.63,0.000169,2]
[424217563,1780671043000,-1455.9108136,0.00016652,2]
[424217539,1780671043000,-2285.8192381,0.00016342,2]
[424217540,1780671043000,-169.77702836,0.00016357,2]
[424217538,1780671043000,-166.66,0.00016342,2]
[424217542,1780671043000,-2285.8192381,0.00016394,2]
[424217571,1780671043000,-2285.8192381,0.00016863,2]
[424217552,1780671043000,-1555.5,0.00016473,2]
[424217556,1780671043000,-6878.54702717,0.000165,2]
[424217554,1780671043000,-2285.8192381,0.00016489,2]
[424217555,1780671043000,-2016.58794916,0.000165,2]
[424217551,1780671043000,-1068.11,0.00016473,2]
[424217553,1780671043000,-2285.8192381,0.0001648,2]
[424217557,1780671043000,-2285.8192381,0.00016503,2]
[424217559,1780671043000,-2285.8192381,0.00016578,2]
[424217561,1780671043000,-2285.8192381,0.00016602,2]
[424217560,1780671043000,-2285.8192381,0.00016589,2]
[424217558,1780671043000,-2285.8192381,0.00016506,2]
[424217564,1780671043000,-2285.8192381,0.00016664,2]
[424217565,1780671043000,-168.28,0.00016712,2]
[424217562,1780671043000,-2285.8192381,0.00016641,2]
[424217640,1780671044000,-250.0,0.00018904,2]
[424217632,1780671044000,-360.55045832,0.000187,2]
[424217646,1780671044000,-498.99321736,0.00019008,2]
[424217642,1780671044000,-1465.57907104,0.00019,2]
[424217644,1780671044000,-180582.95508246,0.00019,2]
[424217612,1780671044000,-1592.63223635,0.000184,2]
[424217630,1780671044000,-1798.80895522,0.00018665,2]
[424217628,1780671044000,-1235.18214925,0.00018665,2]
[424217626,1780671044000,-500.0,0.00018638,2]
[424217634,1780671044000,-1592.63223635,0.000187,2]
[424217624,1780671044000,-2000.0,0.00018638,2]
[424217638,1780671044000,-1009.68,0.00018904,2]
[424217636,1780671044000,-216.9272301,0.000187,2]
[424217656,1780671044000,-9035.0,0.00019685,2]
[424217648,1780671044000,-1280.88388877,0.00019213,2]
[424217652,1780671044000,-2000.0,0.00019308,2]
[424217654,1780671044000,-168.28,0.00019658,2]
[424217662,1780671044000,-382.0,0.0002,2]
[424217660,1780671044000,-1934.38338736,0.00019761,2]
[424217658,1780671044000,-1328.27659266,0.00019761,2]
[424217666,1780671044000,-684.0,0.0002,2]
[424217664,1780671044000,-717.0,0.0002,2]
[424217671,1780671044000,-2221.0,0.0002,2]
[424217673,1780671044000,-2221.17894187,0.0002,2]
[424217675,1780671044000,-910.0,0.0002,2]
[424217622,1780671044000,-2129.0,0.00018551,2]
[424217650,1780671044000,-1865.36488656,0.00019213,2]
[424217614,1780671044000,-3994.5,0.0001841,2]
[424217594,1780671044000,-14448.67,0.00018,2]
[424217611,1780671044000,-360.55045832,0.000184,2]
[424217587,1780671044000,-1314.09,0.000177,2]
[424217597,1780671044000,-350.0,0.00018,2]
[424217590,1780671044000,-289.71598915,0.00017934,2]
[424217592,1780671044000,-1592.63223635,0.00018,2]
[424217591,1780671044000,-360.55045832,0.00018,2]
[424217589,1780671044000,-6453.0,0.00017895,2]
[424217588,1780671044000,-152.95,0.000178,2]
[424217595,1780671044000,-12892.95,0.00018,2]
[424217669,1780671044000,-1604.0,0.0002,2]
[424217593,1780671044000,-216.9272301,0.00018,2]
[424217596,1780671044000,-297.76,0.00018,2]
[424217598,1780671044000,-1044.1,0.00018082,2]
[424217599,1780671044000,-1191.11104074,0.00018117,2]
[424217604,1780671044000,-1227.0,0.00018121,2]
[424217602,1780671044000,-1357.0,0.00018121,2]
[424217607,1780671044000,-360.55045832,0.000182,2]
[424217603,1780671044000,-1273.0,0.00018121,2]
[424217601,1780671044000,-3553.0,0.00018121,2]
[424217600,1780671044000,-1734.62772924,0.00018117,2]
[424217605,1780671044000,-933.0,0.00018121,2]
[424217606,1780671044000,-419.0,0.00018121,2]
[424217608,1780671044000,-1592.63223635,0.000182,2]
[424217609,1780671044000,-216.9272301,0.000182,2]
[424217618,1780671044000,-1592.63223635,0.000185,2]
[424217620,1780671044000,-216.9272301,0.000185,2]
[424217610,1780671044000,-200.0,0.00018223,2]
[424217616,1780671044000,-360.55045832,0.000185,2]
[424217613,1780671044000,-216.9272301,0.000184,2]
[424217685,1780671044000,-2555.0,0.0002,2]
[424217681,1780671044000,-3475.0,0.0002,2]
[424217676,1780671044000,-535.0,0.0002,2]
[424217739,1780671044000,-1086.47,0.00020547,2]
[424217737,1780671044000,-2221.17894187,0.000204,2]
[424217738,1780671044000,-188.0,0.000205,3]
[424217744,1780671044000,-21873.0,0.00020548,2]
[424217755,1780671044000,-600.0,0.0002063,2]
[424217754,1780671044000,-600.0,0.0002063,2]
[424217743,1780671044000,-1086.54003348,0.00020547,2]
[424217745,1780671044000,-3785.0,0.0002055,5]
[424217753,1780671044000,-600.0,0.0002063,2]
[424217748,1780671044000,-150.0,0.0002058,2]
[424217751,1780671044000,-600.0,0.0002063,2]
[424217687,1780671044000,-463.0,0.0002,2]
[424217749,1780671044000,-2221.17894187,0.000206,2]
[424217746,1780671044000,-150.0,0.0002058,2]
[424217747,1780671044000,-150.0,0.0002058,2]
[424217752,1780671044000,-600.0,0.0002063,2]
[424217756,1780671044000,-600.0,0.0002063,2]
[424217757,1780671044000,-600.0,0.0002063,2]
[424217766,1780671044000,-2221.17894187,0.000208,2]
[424217765,1780671044000,-564.37842481,0.00020713,2]
[424217759,1780671044000,-545.0,0.0002063,2]
[424217758,1780671044000,-600.0,0.0002063,2]
[424217760,1780671044000,-289.46853701,0.00020648,2]
[424217761,1780671044000,-564.28,0.00020713,2]
[424217762,1780671044000,-564.28,0.00020713,2]
[424217763,1780671044000,-564.28,0.00020713,2]
[424217764,1780671044000,-564.28,0.00020713,2]
[424217736,1780671044000,-3994.5,0.00020381,2]
[424217742,1780671044000,-1086.47,0.00020547,2]
[424217750,1780671044000,-600.0,0.0002063,2]
[424217733,1780671044000,-150.0,0.00020316,2]
[424217690,1780671044000,-704.0,0.0002,2]
[424217734,1780671044000,-150.0,0.00020316,2]
[424217683,1780671044000,-2139.09,0.0002,7]
[424217692,1780671044000,-3786.0,0.0002,2]
[424217679,1780671044000,-2873.0,0.0002,2]
[424217695,1780671044000,-917.0,0.0002,2]
[424217706,1780671044000,-176.35814966,0.0002,2]
[424217699,1780671044000,-1918.0,0.0002,2]
[424217703,1780671044000,-176.35814966,0.0002,2]
[424217718,1780671044000,-5757.140333,0.0002,2]
[424217708,1780671044000,-176.35814966,0.0002,2]
[424217719,1780671044000,-1342.0,0.00020048,2]
[424217710,1780671044000,-176.35814966,0.0002,2]
[424217701,1780671044000,-461.0,0.0002,2]
[424217716,1780671044000,-400.0,0.0002,2]
[424217735,1780671044000,-166.0,0.00020316,2]
[424217712,1780671044000,-176.35814967,0.0002,2]
[424217740,1780671044000,-1086.47,0.00020547,2]
[424217732,1780671044000,-2005.9555727,0.00020309,2]
[424217730,1780671044000,-3620.0,0.00020214,2]
[424217729,1780671044000,-1314.09,0.000202,2]
[424217731,1780671044000,-1377.42282658,0.00020309,2]
[424217724,1780671044000,-975.26,0.00020054,2]
[424217727,1780671044000,-2221.17894187,0.000202,2]
[424217725,1780671044000,-678.47,0.00020072,2]
[424217714,1780671044000,-12898.39,0.0002,2]
[424217721,1780671044000,-1352.0,0.00020048,2]
[424217741,1780671044000,-1086.47,0.00020547,2]
[424217808,1780671045000,-152.0,0.00020857,2]
[424217810,1780671045000,-1000.0,0.00020857,2]
[424217809,1780671045000,-693.39197629,0.00020857,2]
[424217807,1780671045000,-151.0,0.00020857,2]
[424217801,1780671045000,-152.0,0.00020857,2]
[424217803,1780671045000,-151.0,0.00020857,2]
[424217798,1780671045000,-721.12765534,0.00020857,2]
[424217797,1780671045000,-209.40437684,0.00020857,2]
[424217795,1780671045000,-4160.35185778,0.00020857,2]
[424217800,1780671045000,-151.0,0.00020857,2]
[424217804,1780671045000,-151.0,0.00020857,2]
[424217817,1780671045000,-151.0,0.00020857,2]
[424217799,1780671045000,-151.0,0.00020857,2]
[424217816,1780671045000,-1000.0,0.00020857,2]
[424217830,1780671045000,-151.0,0.00020857,2]
[424217818,1780671045000,-151.0,0.00020857,2]
[424217815,1780671045000,-151.0,0.00020857,2]
[424217811,1780671045000,-151.0,0.00020857,2]
[424217814,1780671045000,-152.0,0.00020857,2]
[424217813,1780671045000,-1000.0,0.00020857,2]
[424217826,1780671045000,-151.0,0.00020857,2]
[424217827,1780671045000,-1000.0,0.00020857,2]
[424217828,1780671045000,-500.0,0.00020857,2]
[424217829,1780671045000,-151.0,0.00020857,2]
[424217819,1780671045000,-152.0,0.00020857,2]
[424217831,1780671045000,-1000.0,0.00020857,2]
[424217823,1780671045000,-151.0,0.00020857,2]
[424217806,1780671045000,-151.0,0.00020857,2]
[424217812,1780671045000,-151.0,0.00020857,2]
[424217805,1780671045000,-152.0,0.00020857,2]
[424217820,1780671045000,-151.0,0.00020857,2]
[424217802,1780671045000,-151.0,0.00020857,2]
[424217767,1780671045000,-209.40437684,0.00020857,2]
[424217768,1780671045000,-151.0,0.00020857,2]
[424217777,1780671045000,-174.61919141,0.00020857,2]
[424217769,1780671045000,-693.39197629,0.00020857,2]
[424217779,1780671045000,-743.50770149,0.00020857,2]
[424217778,1780671045000,-151.0,0.00020857,2]
[424217780,1780671045000,-279.9045709,0.00020857,2]
[424217771,1780671045000,-151.0,0.00020857,2]
[424217774,1780671045000,-160.0,0.00020857,2]
[424217773,1780671045000,-151.0,0.00020857,2]
[424217770,1780671045000,-200.0,0.00020857,2]
[424217772,1780671045000,-151.0,0.00020857,2]
[424217775,1780671045000,-151.0,0.00020857,2]
[424217796,1780671045000,-152.0,0.00020857,2]
[424217776,1780671045000,-9552.16786547,0.00020857,2]
[424217783,1780671045000,-1428.38747117,0.00020857,2]
[424217782,1780671045000,-200.0,0.00020857,2]
[424217784,1780671045000,-209.40437684,0.00020857,2]
[424217786,1780671045000,-578.20924308,0.00020857,2]
[424217787,1780671045000,-151.0,0.00020857,2]
[424217792,1780671045000,-151.0,0.00020857,2]
[424217790,1780671045000,-500.0,0.00020857,2]
[424217789,1780671045000,-151.0,0.00020857,2]
[424217785,1780671045000,-151.0,0.00020857,2]
[424217793,1780671045000,-2080.17592889,0.00020857,2]
[424217788,1780671045000,-209.40437684,0.00020857,2]
[424217791,1780671045000,-151.0,0.00020857,2]
[424217794,1780671045000,-200.0,0.00020857,2]
[424217781,1780671045000,-151.0,0.00020857,2]
[424217821,1780671045000,-1000.0,0.00020857,2]
[424217876,1780671045000,-6111.0,0.00021,2]
[424217824,1780671045000,-1000.0,0.00020857,2]
[424217861,1780671045000,-500.0,0.00020999,2]
[424217866,1780671045000,-717.0,0.00021,2]
[424217860,1780671045000,-151.0,0.00020967,2]
[424217864,1780671045000,-13438.70092523,0.00021,2]
[424217863,1780671045000,-1036.17,0.00020999,2]
[424217865,1780671045000,-382.0,0.00021,2]
[424217870,1780671045000,-2221.0,0.00021,2]
[424217881,1780671045000,-704.0,0.00021,2]
[424217869,1780671045000,-1987.88816018,0.00021,2]
[424217872,1780671045000,-910.0,0.00021,2]
[424217874,1780671045000,-3475.0,0.00021,2]
[424217871,1780671045000,-2221.17894187,0.00021,2]
[424217879,1780671045000,-463.0,0.00021,2]
[424217862,1780671045000,-500.0,0.00020999,2]
[424217875,1780671045000,-15000.0,0.00021,2]
[424217877,1780671045000,-15000.0,0.00021,2]
[424217884,1780671045000,-917.0,0.00021,2]
[424217886,1780671045000,-461.0,0.00021,2]
[424217885,1780671045000,-1918.0,0.00021,2]
[424217882,1780671045000,-3786.0,0.00021,2]
[424217889,1780671045000,-773.24136889,0.00021022,2]
[424217893,1780671045000,-4811.10779727,0.00021077,2]
[424217887,1780671045000,-5757.140333,0.00021,2]
[424217891,1780671045000,-151.0,0.00021022,2]
[424217890,1780671045000,-4639.44821338,0.00021022,2]
[424217888,1780671045000,-828.0,0.00021009,2]
[424217892,1780671045000,-801.85129954,0.00021077,2]
[424217822,1780671045000,-500.0,0.00020857,2]
[424217878,1780671045000,-6111.0,0.00021,2]
[424217867,1780671045000,-684.0,0.00021,2]
[424217873,1780671045000,-535.0,0.00021,2]
[424217858,1780671045000,-745.65223615,0.00020967,2]
[424217868,1780671045000,-1604.0,0.00021,2]
[424217832,1780671045000,-500.0,0.00020857,2]
[424217834,1780671045000,-1000.0,0.00020857,2]
[424217837,1780671045000,-1000.0,0.00020857,2]
[424217841,1780671045000,-152.0,0.00020857,2]
[424217838,1780671045000,-500.0,0.00020857,2]
[424217833,1780671045000,-151.0,0.00020857,2]
[424217840,1780671045000,-151.0,0.00020857,2]
[424217842,1780671045000,-1000.0,0.00020857,2]
[424217836,1780671045000,-152.0,0.00020857,2]
[424217839,1780671045000,-151.0,0.00020857,2]
[424217844,1780671045000,-151.0,0.00020857,2]
[424217854,1780671045000,-719.04747942,0.00020912,2]
[424217855,1780671045000,-4314.28487652,0.00020912,2]
[424217835,1780671045000,-151.0,0.00020857,2]
[424217859,1780671045000,-4473.91341695,0.00020967,2]
[424217843,1780671045000,-500.0,0.00020857,2]
[424217856,1780671045000,-151.0,0.00020912,2]
[424217857,1780671045000,-351.54786349,0.00020926,2]
[424217850,1780671045000,-500.0,0.00020857,2]
[424217849,1780671045000,-500.0,0.00020857,2]
[424217847,1780671045000,-151.0,0.00020857,2]
[424217825,1780671045000,-152.0,0.00020857,2]
[424217846,1780671045000,-500.0,0.00020857,2]
[424217852,1780671045000,-500.0,0.00020857,2]
[424217851,1780671045000,-500.0,0.00020857,2]
[424217853,1780671045000,-500.0,0.00020857,2]
[424217845,1780671045000,-152.0,0.00020857,2]
[424217848,1780671045000,-152.0,0.00020857,2]
[424217943,1780671046000,-997.16350561,0.00021407,2]
[424217941,1780671046000,-719.04747942,0.00021405,2]